bitfinex/quotes_ETHUSD_20251126
["timestamp","ask_amount","ask_price","bid_price","bid_amount"]
[1764141534076,0.4943,2951.2,2950.6,0.72559411]
[1764141534419,0.4943,2951.2,2950.8,0.72559411]
[1764141534870,0.4943,2951.2,2950.7,3.38902633]
[1764141535074,0.3149,2950.9,2950.7,3.38902633]
[1764141535301,0.4943,2951.2,2950.7,3.38902633]
[1764141535576,0.4943,2951.2,2950.8,4.2682]
[1764141535790,0.4943,2951.2,2950.9,3.81]
[1764141535985,0.4943,2951.2,2950.5,0.215]
[1764141535986,0.3149,2950.9,2950.5,3.38920562]
[1764141536185,0.3149,2950.9,2950.2,0.4606]
[1764141536186,0.1891,2950.9,2950.2,0.4606]
[1764141536383,0.6834,2950.9,2950.4,0.72559411]
[1764141536804,0.6834,2950.9,2950.3,6.77893748]
[1764141537004,0.6834,2950.9,2950.4,0.4606]
[1764141538508,0.6834,2950.9,2950.4,3.38935318]
[1764141538713,0.4943,2950.8,2950.4,3.38935318]
[1764141538898,0.3149,2950.5,2950.4,3.38935318]
[1764141539783,0.3149,2950.5,2950.2,6.7792014]
[1764141539975,0.4943,2950.8,2950.2,6.7792014]
[1764141540214,0.4943,2950.8,2950.4,0.4582]
[1764141540378,0.1891,2950.9,2950.4,0.4582]
[1764141540579,0.6834,2950.9,2950.4,0.9188]
[1764141540779,3.38845788,2951.2,2950.4,0.9188]
[1764141541012,0.215,2951.1,2950.4,0.9188]
[1764141541197,0.7093,2951.1,2950.4,0.9188]
[1764141541905,4.09788319,2951.1,2950.5,3.38925605]
[1764141542144,0.3149,2950.5,2950.2,3.38956991]
[1764141542426,0.59403709,2951.0,2950.2,6.77917061]
[1764141542593,0.3123,2950.3,2950.1,0.001]
[1764141542798,0.3123,2950.2,2950.1,0.001]
[1764141543206,0.7766,2950.2,2950.1,0.001]
[1764141545726,0.3123,2950.2,2950.1,0.001]
[1764141545901,0.7766,2950.2,2950.1,0.001]
[1764141546628,4.67144179,2950.2,2950.1,0.001]
[1764141547225,4.98813164,2950.2,2950.1,0.001]
[1764141547429,4.67144179,2950.2,2950.1,0.001]
[1764141548231,4.98798402,2950.2,2950.1,0.001]
[1764141548400,4.67144179,2950.2,2950.1,0.001]
[1764141549318,5.6120359,2950.2,2950.1,0.001]
[1764141549518,5.92831314,2950.2,2950.1,0.001]
[1764141553013,5.92790756,2950.2,2950.1,0.001]
[1764141553432,5.61317047,2950.2,2950.1,0.001]
[1764141553743,5.82817047,2950.2,2950.1,0.001]
[1764141553939,5.92790756,2950.2,2950.1,0.001]
[1764141554726,1.13109811,2950.1,2949.9,0.001]
[1764141554937,0.53804109,2950.0,2949.9,0.001]
[1764141555247,1.03034109,2950.0,2949.9,0.001]
[1764141555413,1.24534109,2950.0,2949.9,0.001]
[1764141556650,4.63517159,2950.0,2949.9,0.001]
[1764141557019,4.42017159,2950.0,2949.9,0.001]
[1764141557228,4.63517159,2950.0,2949.9,0.001]
[1764141563365,4.951134,2950.0,2949.9,0.001]
[1764141563842,4.736134,2950.0,2949.9,0.001]
[1764141564042,4.951134,2950.0,2949.9,0.001]
[1764141566874,5.67672811,2950.0,2949.9,0.001]
[1764141567079,0.50524109,2949.7,2949.6,0.001]
[1764141567376,5.21877288,2949.7,2949.6,0.001]
[1764141567537,5.71107288,2949.7,2949.6,0.001]
[1764141571474,5.94888062,2949.7,2949.6,0.001]
[1764141571663,5.43377288,2949.7,2949.6,0.001]
[1764141573283,6.16458088,2949.7,2949.6,0.001]
[1764141573578,6.65688088,2949.7,2949.6,0.001]
[1764141574574,6.16458088,2949.7,2949.6,0.001]
[1764141578048,6.18738088,2949.7,2949.6,0.001]
[1764141578245,10.06795615,2949.7,2949.5,0.001]
[1764141578459,10.06795615,2949.7,2949.3,0.001]
[1764141578460,3.89116007,2949.6,2949.3,0.001]
[1764141578668,3.44834114,2949.4,2949.3,0.001]
[1764141578869,5.41063637,2949.4,2949.3,0.001]
[1764141579080,5.90103637,2949.4,2949.3,0.001]
[1764141580563,6.65305642,2949.4,2949.3,0.001]
[1764141581171,9.80070271,2949.4,2949.3,0.001]
[1764141582462,9.60857271,2949.4,2949.3,0.001]
[1764141582662,9.17810171,2949.4,2949.3,0.001]
[1764141584995,12.71696903,2949.4,2949.3,0.001]
[1764141588572,12.61723194,2949.4,2949.3,0.001]
[1764141588772,12.71696903,2949.4,2949.3,0.001]
[1764141589607,16.29196903,2949.4,2949.3,0.001]
[1764141589794,12.71696903,2949.4,2949.3,0.001]
[1764141590204,13.55457003,2949.4,2949.3,0.001]
[1764141590606,1.13109811,2949.3,2949.1,0.001]
[1764141590781,11.36455515,2949.2,2949.1,0.001]
[1764141590984,11.82065515,2949.2,2949.1,0.001]
[1764141591198,15.21140518,2949.2,2949.1,0.001]
[1764141592279,13.37633264,2949.2,2949.1,0.001]
[1764141594406,11.23427435,2949.2,2949.1,0.001]
[1764141595298,7.89669735,2949.2,2949.1,0.001]
[1764141595607,11.23427435,2949.2,2949.1,0.001]
[1764141596604,5.60215164,2949.2,2949.1,0.001]
[1764141596804,5.81715164,2949.2,2949.1,0.001]
[1764141597309,6.79672131,2949.2,2949.1,0.4903]
[1764141597607,5.88335564,2949.2,2949.1,0.4903]
[1764141597805,6.57901855,2949.2,2949.1,0.001]
[1764141598004,7.59212131,2949.2,2949.1,0.001]
[1764141598583,6.67875564,2949.2,2949.1,0.001]
[1764141601200,11.23427435,2949.2,2949.1,0.001]
[1764141601522,8.3369122,2948.7,2948.6,1e-08]
[1764141601693,18.0753587,2948.7,2948.6,1e-08]
[1764141601893,17.99416832,2948.7,2948.6,1e-08]
[1764141602628,4.5684122,2948.6,2948.5,0.001]
[1764141602831,7.61878815,2948.6,2948.5,0.001]
[1764141603695,0.50524109,2948.1,2947.2,0.1916]
[1764141603900,9.86812077,2948.1,2947.2,0.6618]
[1764141604094,11.06642877,2948.1,2947.2,0.6618]
[1764141605135,0.50524109,2947.8,2946.9,0.4702]
[1764141605304,7.03349484,2947.8,2946.9,0.4702]
[1764141605506,7.50099484,2947.8,2946.9,0.4702]
[1764141606235,9.98034301,2947.8,2946.9,0.4702]
[1764141607625,9.32024301,2947.8,2947.2,0.4702]
[1764141607834,9.78774301,2947.8,2947.2,0.4702]
[1764141608731,5.47946201,2947.8,2947.7,0.9296]
[1764141608930,6.19766601,2947.8,2947.7,0.001]
[1764141609510,5.88496601,2947.8,2947.7,0.4594]
[1764141609712,5.88496601,2947.8,2947.7,0.9296]
[1764141611347,4.74865401,2947.8,2947.7,0.9296]
[1764141611522,4.64891692,2947.8,2947.7,0.9296]
[1764141611716,5.05442092,2947.8,2947.7,0.9296]
[1764141612823,3.49198261,2947.9,2947.7,0.9296]
[1764141613022,3.39228228,2947.9,2947.8,0.9286]
[1764141613221,3.60728228,2947.9,2947.8,0.9286]
[1764141613484,4.33287639,2947.9,2947.8,0.9286]
[1764141614746,0.215,2947.9,2947.8,0.9286]
[1764141618778,3.60724532,2947.9,2947.8,0.4584]
[1764141618983,4.33283943,2947.9,2947.8,0.9498]
[1764141620286,4.6498406,2947.9,2947.8,0.9498]
[1764141620788,4.74957769,2947.9,2947.8,0.9498]
[1764141622279,4.6498406,2947.9,2947.8,0.9498]
[1764141622777,0.215,2947.9,2947.8,0.9498]
[1764141625372,0.002,2948.0,2947.8,0.9498]
[1764141625588,0.217,2948.0,2947.9,0.9627]
[1764141625862,3.60913025,2948.0,2947.9,0.9627]
[1764141627185,0.217,2948.0,2947.9,0.9627]
[1764141627712,3.60913025,2948.0,2947.9,0.9627]
[1764141627871,0.217,2948.0,2947.9,0.9627]
[1764141629500,3.60913025,2948.0,2947.9,0.9627]
[1764141631299,3.60913025,2948.0,2947.9,0.4713]
[1764141631474,3.60913025,2948.0,2947.9,0.9627]
[1764141636025,0.217,2948.0,2947.9,0.9627]
[1764141636588,0.002,2948.0,2947.9,4.7727]
[1764141639587,0.002,2948.0,2947.9,8.16494532]
[1764141647025,0.002,2948.0,2947.9,4.7727]
[1764141647224,0.002,2948.0,2947.9,8.16494532]
[1764141650245,0.002,2948.0,2947.9,8.16594532]
[1764141653844,0.002,2948.0,2947.9,4.7737]
[1764141654345,0.002,2948.0,2947.9,8.16594532]
[1764141654943,0.002,2948.3,2948.2,0.72559411]
[1764141655241,0.002,2948.6,2948.4,0.72559411]
[1764141655440,0.002,2948.6,2948.5,0.9425]
[1764141655646,0.002,2948.6,2948.5,4.7525]
[1764141656940,0.002,2949.3,2948.6,0.405504]
[1764141657138,0.002,2949.3,2949.2,0.6558]
[1764141657443,0.002,2949.3,2949.2,4.98714414]
[1764141657609,0.002,2949.3,2949.2,5.46624414]
[1764141660240,0.002,2949.3,2949.2,1.1349]
[1764141661122,0.002,2949.3,2949.2,4.52565003]
[1764141662213,0.002,2949.3,2949.0,3.3908939]
[1764141662214,0.3476,2949.3,2949.0,3.81]
[1764141662429,0.3476,2949.3,2948.6,0.6652]
[1764141662430,0.002,2949.3,2948.6,0.6652]
[1764141662629,0.002,2949.3,2948.7,4.2922]
[1764141662833,0.002,2949.3,2948.8,3.81]
[1764141663036,0.002,2949.3,2949.2,0.4728]
[1764141663455,0.002,2949.3,2949.2,0.955]
[1764141664256,0.002,2949.3,2949.2,4.56075003]
[1764141665427,0.002,2949.3,2949.2,11.73353405]
[1764141665932,0.002,2949.3,2949.2,18.58903805]
[1764141666153,0.002,2949.3,2949.2,18.68903805]
[1764141666460,0.002,2949.6,2949.3,0.72559411]
[1764141666634,0.002,2949.6,2949.5,0.4728]
[1764141666835,0.002,2949.6,2949.3,0.72559411]
[1764141667165,0.002,2949.6,2949.2,3.39075003]
[1764141667658,0.002,2949.3,2949.2,3.39075003]
[1764141668028,0.002,2949.3,2949.2,3.86355003]
[1764141668227,0.002,2949.3,2949.2,0.4728]
[1764141668631,0.4631,2949.3,2949.0,3.39097125]
[1764141668825,0.4614,2949.3,2948.1,6.97636074]
[1764141669071,0.4614,2949.3,2948.2,0.4822]
[1764141669431,0.4614,2949.3,2948.2,1.20779411]
[1764141669878,0.4614,2949.3,2948.3,0.4822]
[1764141670372,7.34246605,2949.3,2948.4,0.72559411]
[1764141670575,3.95180157,2949.3,2948.4,0.72559411]
[1764141670872,0.4594,2949.2,2948.4,0.72559411]
[1764141671261,0.4594,2949.2,2948.4,1.20779411]
[1764141672471,0.002,2949.3,2948.5,7.26531004]
[1764141672770,0.4614,2949.3,2948.5,7.26531004]
[1764141672956,0.002,2949.3,2948.6,0.4822]
[1764141673538,0.002,2949.3,2948.1,0.1924]
[1764141673539,0.4611,2948.7,2948.1,0.1924]
[1764141673869,0.63483709,2949.2,2948.2,4.53559411]
[1764141674167,0.215,2949.1,2948.2,4.53559411]
[1764141674373,4.08965886,2949.1,2948.2,8.38712874]
[1764141674768,0.4837,2949.0,2948.2,8.38712874]
[1764141675656,0.4837,2949.0,2948.2,11.77902888]
[1764141675857,3.60586857,2949.1,2948.3,0.4597]
[1764141676059,0.215,2949.1,2948.3,0.4597]
[1764141676371,0.4837,2949.0,2948.3,3.81]
[1764141676579,3.87470032,2949.0,2948.3,7.20177016]
[1764141677240,0.4837,2948.9,2948.3,3.81]
[1764141677775,0.4837,2948.9,2948.2,0.4597]
[1764141677982,0.4837,2948.9,2948.2,3.85159987]
[1764141678173,0.4837,2948.9,2948.2,0.4597]
[1764141678381,0.4837,2948.9,2948.1,4.0024]
[1764141678585,3.87484261,2948.9,2948.1,7.39438013]
[1764141678757,7.26598522,2948.9,2948.1,7.39438013]
[1764141678960,0.4837,2948.8,2948.1,4.0024]
[1764141679145,0.4837,2948.8,2948.1,3.81]
[1764141680346,0.3248,2948.2,2948.1,3.81]
[1764141680584,0.3248,2948.2,2948.0,3.81]
[1764141680874,0.4837,2948.5,2948.0,3.81]
[1764141682379,0.3248,2948.1,2947.9,0.001]
[1764141682588,0.0032,2948.0,2947.9,0.001]
[1764141682877,0.4837,2948.5,2947.9,0.001]
[1764141683175,3.87526308,2948.5,2947.9,0.4655]
[1764141683664,0.4837,2948.4,2947.9,0.4655]
[1764141683864,0.405504,2948.9,2947.9,0.4655]
[1764141684083,0.215,2948.6,2947.9,0.9252]
[1764141684576,0.215,2948.6,2948.1,3.39201519]
[1764141685082,0.215,2948.6,2948.1,4.04731519]
[1764141685279,0.215,2948.6,2948.2,0.4597]
[1764141685483,3.6064404,2948.6,2948.2,0.4597]
[1764141685677,3.6064404,2948.6,2948.1,0.1956]
[1764141685976,0.6987,2948.6,2948.1,0.6553]
[1764141686183,0.215,2948.6,2948.1,0.6553]
[1764141686786,0.215,2948.6,2948.5,0.4645]
[1764141686987,0.215,2948.6,2948.2,0.4597]
[1764141687490,0.215,2948.6,2948.0,3.811]
[1764141687491,0.3248,2948.3,2948.0,3.811]
[1764141687700,0.0032,2948.2,2948.0,3.811]
[1764141687999,6.99795832,2948.6,2948.0,7.20312939]
[1764141688000,0.215,2948.6,2948.0,7.20312939]
[1764141688298,0.215,2948.6,2948.1,0.4645]
[1764141688677,3.60644738,2948.6,2948.1,0.9242]
[1764141689078,3.60645545,2948.6,2948.1,1.1198]
[1764141689492,4.09015545,2948.6,2948.1,1.1198]
[1764141689690,0.4837,2948.5,2948.1,0.4645]
[1764141690166,0.3248,2948.2,2948.0,3.811]
[1764141690566,0.3248,2948.2,2948.1,3.81]
[1764141690762,3.39155502,2948.5,2948.1,3.81]
[1764141690968,0.3248,2948.2,2948.0,0.001]
[1764141691275,0.4869,2948.1,2948.0,0.001]
[1764141692914,5.0100133,2948.1,2948.0,0.001]
[1764141693093,5.10975039,2948.1,2948.0,0.001]
[1764141696171,5.42643841,2948.1,2948.0,0.001]
[1764141697494,5.32670132,2948.1,2948.0,0.001]
[1764141697696,5.64143841,2948.1,2948.0,0.001]
[1764141698399,5.64143841,2948.1,2947.9,0.001]
[1764141698400,13.10119755,2948.1,2947.9,0.001]
[1764141698585,13.10119755,2948.1,2947.7,0.001]
[1764141698586,0.50524109,2947.8,2947.7,0.001]
[1764141698901,4.65070159,2947.8,2947.7,0.001]
[1764141699095,5.86456854,2947.8,2947.7,0.001]
[1764141700406,9.25692894,2947.8,2947.7,0.001]
[1764141700606,6.61345057,2947.8,2947.7,0.001]
[1764141703057,9.95102757,2947.8,2947.7,0.001]
[1764141703544,4.5684122,2947.7,2947.4,0.021]
[1764141703760,7.23232612,2947.7,2947.4,0.021]
[1764141704614,10.6248016,2947.7,2947.4,0.021]
[1764141705016,9.71324265,2947.7,2947.4,0.021]
[1764141705949,6.37566565,2947.7,2947.4,0.021]
[1764141706163,9.71324265,2947.7,2947.4,0.021]
[1764141706311,10.6240057,2947.7,2947.4,0.021]
[1764141706711,10.30926861,2947.7,2947.4,0.021]
[1764141707056,5.97016165,2947.7,2947.4,0.021]
[1764141707258,6.37566565,2947.7,2947.4,0.021]
[1764141708047,9.71324265,2947.7,2947.4,0.021]
[1764141710071,6.37566565,2947.7,2947.4,0.021]
[1764141710382,8.70798965,2947.7,2947.4,0.021]
[1764141710679,6.16066565,2947.7,2947.4,0.021]
[1764141710847,6.37566565,2947.7,2947.4,0.021]
[1764141716171,4.53906754,2947.7,2947.6,0.4773]
[1764141716499,5.47966165,2947.7,2947.6,0.4773]
[1764141716702,5.26466165,2947.7,2947.6,0.4773]
[1764141716903,5.26466165,2947.7,2947.6,0.972]
[1764141716904,3.9241635,2947.7,2947.6,0.972]
[1764141717074,4.64975761,2947.7,2947.6,0.972]
[1764141717477,4.65175761,2947.7,2947.6,0.972]
[1764141717709,4.33506959,2947.7,2947.6,0.972]
[1764141718288,4.65173854,2947.7,2947.6,0.972]
[1764141720202,0.002,2947.7,2947.6,0.972]
[1764141720809,0.002,2947.7,2947.6,8.17459058]
[1764141723589,0.002,2948.0,2947.6,14.95977174]
[1764141723797,0.002,2948.3,2947.9,0.4512]
[1764141723992,0.002,2948.3,2948.2,0.5645]
[1764141724396,0.002,2948.3,2948.2,4.40740014]
[1764141726027,0.002,2948.3,2948.2,5.34799425]
[1764141726187,0.002,2949.3,2948.2,5.34799425]
[1764141726523,0.002,2949.3,2949.2,0.4512]
[1764141726929,0.002,2949.3,2949.2,0.9022]
[1764141727718,0.002,2949.3,2949.2,0.4512]
[1764141727924,0.002,2949.3,2949.2,0.9022]
[1764141730304,0.3208,2949.3,2948.4,0.451]
[1764141730494,0.3208,2949.3,2948.6,3.39144]
[1764141730689,0.002,2949.3,2948.6,3.39144]
[1764141731015,0.002,2949.3,2949.2,0.4512]
[1764141732119,3.71283506,2949.3,2948.9,0.451]
[1764141733027,0.002,2949.3,2949.2,0.4512]
[1764141733192,0.002,2949.3,2949.2,0.9022]
[1764141735123,0.002,2949.3,2949.2,5.01854414]
[1764141736396,3.87477744,2950.5,2949.2,5.01854414]
[1764141736397,0.0013276,2950.9,2950.1,0.6631]
[1764141736598,0.0013276,2950.9,2950.8,0.4641]
[1764141737018,0.0013276,2950.9,2950.8,4.30791148]
[1764141738672,0.53146062,2952.7,2950.8,4.57860559]
[1764141738835,0.91076305,2953.6,2952.6,0.5774]
[1764141739035,0.4855,2953.5,2952.6,0.5774]
[1764141739223,0.09973709,2953.4,2952.6,0.5774]
[1764141739658,0.09973709,2953.4,2952.6,4.41913124]
[1764141740426,0.216,2953.6,2952.6,4.41913124]
[1764141740661,0.216,2953.5,2952.7,0.4549]
[1764141740859,0.4855,2953.6,2952.7,0.4549]
[1764141741060,0.216,2953.6,2952.8,3.38661609]
[1764141741565,0.94159411,2953.6,2952.8,3.84151609]
[1764141741859,0.216,2953.6,2952.9,0.4549]
[1764141742053,0.94159411,2953.6,2952.9,0.4549]
[1764141742356,0.216,2953.6,2952.9,0.4549]
[1764141742730,0.216,2953.9,2953.5,0.4641]
[1764141743060,0.216,2953.9,2953.6,0.4641]
[1764141743266,0.4855,2953.8,2952.9,0.4549]
[1764141743468,0.58523709,2953.8,2952.9,3.84137853]
[1764141743833,0.58523709,2953.8,2953.0,0.4549]
[1764141744264,0.09973709,2953.8,2953.0,0.4549]
[1764141744562,3.79336321,2953.9,2953.0,0.4549]
[1764141744563,1.13359411,2953.9,2953.0,0.4549]
[1764141744763,4.27885634,2953.9,2953.0,0.4549]
[1764141744965,0.58523709,2953.8,2953.0,0.4549]
[1764141745263,3.97076018,2953.8,2953.0,3.84126867]
[1764141745467,0.58523709,2953.8,2953.0,3.84126867]
[1764141745632,0.58523709,2953.8,2953.0,3.38636867]
[1764141745832,0.09973709,2953.8,2953.1,0.4549]
[1764141746435,3.48530247,2953.8,2953.1,0.4549]
[1764141747365,6.87086785,2953.8,2952.6,1.05489411]
[1764141747660,0.4855,2953.7,2952.7,3.84159182]
[1764141747864,0.4855,2953.7,2952.7,7.2283226]
[1764141748067,0.216,2953.6,2952.8,0.4549]
[1764141749564,0.216,2953.6,2952.9,3.3865014]
[1764141749963,3.6017007,2953.6,2952.9,3.3865014]
[1764141750271,4.08723644,2953.6,2952.9,3.3865014]
[1764141750850,4.08723644,2953.6,2952.9,3.8414014]
[1764141751051,4.08923644,2953.6,2952.9,3.8414014]
[1764141751969,0.58523709,2953.5,2952.6,0.5682]
[1764141752173,0.58523709,2953.5,2952.6,3.95499699]
[1764141752337,0.58523709,2953.5,2952.6,7.34184248]
[1764141752671,0.58523709,2953.5,2952.6,3.95499699]
[1764141752837,0.58523709,2953.5,2952.6,7.34184248]
[1764141753249,0.58523709,2953.5,2952.6,0.1133]
[1764141753452,0.216,2953.4,2952.6,0.5682]
[1764141753638,3.38604273,2953.3,2952.6,3.95503757]
[1764141754055,6.77208546,2953.3,2952.6,0.1133]
[1764141754266,0.4855,2953.2,2952.6,0.1133]
[1764141754639,0.4855,2953.2,2952.6,3.50009616]
[1764141755266,0.4855,2953.2,2952.5,3.38691031]
[1764141755469,0.216,2953.1,2952.5,3.84181031]
[1764141755677,0.216,2953.1,2952.5,3.38691031]
[1764141755872,0.216,2953.1,2952.5,3.84181031]
[1764141756374,0.216,2953.1,2952.5,3.38691031]
[1764141756573,0.3009,2952.6,2952.1,3.57548547]
[1764141756954,0.3009,2952.6,2952.1,4.03038547]
[1764141757152,0.216,2952.7,2952.2,0.4549]
[1764141757542,0.216,2952.7,2952.3,3.38718964]
[1764141757939,0.216,2952.7,2952.3,0.4549]
[1764141758442,0.4855,2952.6,2952.1,0.643]
[1764141758676,0.3009,2952.4,2952.2,3.81]
[1764141758878,0.4855,2952.6,2952.2,3.81]
[1764141759049,0.216,2952.7,2952.2,3.81]
[1764141759855,0.7015,2952.7,2952.2,7.19727639]
[1764141760175,0.192,2953.0,2952.6,0.4641]
[1764141760379,0.216,2952.9,2952.6,0.4641]
[1764141760782,0.7015,2952.9,2952.6,0.4641]
[1764141761079,0.7015,2952.9,2952.3,0.4549]
[1764141761747,4.08804887,2952.9,2952.3,7.65207884]
[1764141762468,0.7015,2952.9,2952.3,7.65207884]
[1764141762969,4.08800778,2952.9,2952.3,7.65207651]
[1764141763278,0.7015,2952.9,2952.3,7.65207651]
[1764141763492,0.3009,2952.4,2952.3,3.81]
[1764141763832,1.0006,2952.4,2952.3,3.81]
[1764141764146,0.5169,2952.4,2952.3,3.81]
[1764141765155,0.192,2954.3,2952.3,4.7448]
[1764141765156,1.21970513,2953.6,2952.3,4.7448]
[1764141765356,1.13109811,2953.2,2952.5,0.4554]
[1764141765561,1.04272103,2953.1,2952.5,0.4554]
[1764141765768,0.3155697,2953.0,2952.5,0.9348]
[1764141765974,1.04116381,2953.0,2952.5,4.32175216]
[1764141766182,0.5315697,2952.9,2952.6,0.4794]
[1764141766498,0.5315697,2952.8,2952.6,0.4794]
[1764141766781,0.8016697,2952.7,2952.5,3.81]
[1764141767078,0.3366,2952.6,2952.5,3.81]
[1764141767489,0.31649547,2952.6,2952.5,3.81]
[1764141767782,0.216,2952.8,2952.5,3.81]
[1764141767982,0.31649544,2952.7,2952.5,3.81]
[1764141768147,0.31681784,2952.6,2952.5,3.81]
[1764141768990,0.31681784,2952.6,2952.5,7.6523602]
[1764141769285,0.31681784,2952.6,2952.5,8.1317602]
[1764141769686,0.31681784,2952.6,2952.5,4.3217602]
[1764141769856,0.215,2952.9,2952.5,7.7087204]
[1764141770057,0.31676247,2952.8,2952.6,0.9348]
[1764141770282,0.215,2952.9,2952.8,0.4554]
[1764141770584,1.26165312,2952.9,2952.4,3.81]
[1764141770885,1.26165312,2952.9,2952.5,0.4794]
[1764141770886,1.0466631,2952.8,2952.5,0.4794]
[1764141771086,0.31676513,2952.7,2952.5,0.4794]
[1764141771286,0.72990369,2952.8,2952.6,0.4554]
[1764141771493,0.3366,2952.6,2952.4,3.81]
[1764141772499,0.4498,2952.7,2952.4,3.81]
[1764141772658,0.3377,2952.5,2952.4,3.81]
[1764141772858,0.4498,2952.7,2952.4,3.81]
[1764141773179,0.31678445,2952.6,2952.4,3.81]
[1764141773382,0.4498,2952.7,2952.4,3.81]
[1764141773562,0.31683527,2952.6,2952.4,3.81]
[1764141773763,0.4498,2952.7,2952.4,3.81]
[1764141773965,0.31684192,2952.6,2952.4,3.81]
[1764141774175,0.5527,2952.5,2952.4,3.81]
[1764141774396,1.0013,2952.5,2952.4,3.81]
[1764141774882,4.3882602,2952.5,2952.4,3.81]
[1764141775189,4.7051891,2952.5,2952.4,3.81]
[1764141775595,8.19188639,2952.5,2952.0,3.81]
[1764141775778,1.49813204,2952.4,2951.8,3.81]
[1764141775983,0.3366,2952.1,2951.8,3.81]
[1764141776177,0.5516,2952.1,2951.8,3.81]
[1764141776667,0.215,2952.1,2952.0,0.4554]
[1764141777073,0.215,2952.1,2952.0,0.9348]
[1764141777469,0.215,2952.1,2952.0,0.4554]
[1764141777886,0.215,2952.2,2952.0,0.4554]
[1764141778287,0.215,2952.2,2952.1,0.4554]
[1764141778489,1.26239085,2952.2,2952.1,0.4554]
[1764141779100,0.9453918,2952.2,2952.1,0.4554]
[1764141779406,1.59901639,2952.2,2951.8,7.19771311]
[1764141779608,1.59901639,2952.2,2951.9,3.81]
[1764141779609,0.3366,2952.2,2951.9,3.81]
[1764141779819,0.215,2952.1,2951.9,3.81]
[1764141780381,0.215,2952.1,2951.5,7.19807987]
[1764141780382,0.3377,2952.0,2951.5,7.19807987]
[1764141780697,0.54833709,2951.8,2951.1,0.4794]
[1764141780903,1.26281115,2951.7,2950.9,3.86918556]
[1764141781098,1.04781115,2951.6,2950.9,3.86918556]
[1764141781314,0.215,2951.7,2951.5,0.4554]
[1764141782686,3.60297537,2951.7,2951.5,0.4554]
[1764141783288,0.338,2951.6,2951.2,0.1963]
[1764141783507,0.338,2951.6,2951.2,0.6754]
[1764141784312,0.338,2951.6,2950.9,0.001]
[1764141784313,0.3375,2951.3,2950.9,0.001]
[1764141784513,0.72559411,2951.6,2950.9,0.001]
[1764141784514,0.215,2951.2,2950.9,0.001]
[1764141784680,0.215,2951.2,2951.0,0.4791]
[1764141785020,0.215,2951.2,2951.1,0.4568]
[1764141785386,0.5525,2951.2,2950.9,0.001]
[1764141785585,0.3375,2951.0,2950.9,0.001]
[1764141785998,0.7877,2951.0,2950.9,0.001]
[1764141786606,4.1763818,2951.0,2950.9,0.001]
[1764141787722,0.7877,2951.0,2950.9,0.001]
[1764141788113,0.3375,2951.0,2950.9,0.001]
[1764141788318,3.7261818,2951.0,2950.9,0.001]
[1764141788796,0.3375,2951.0,2950.9,0.001]
[1764141789001,0.215,2951.2,2950.9,0.4578]
[1764141789198,3.60346405,2951.2,2950.9,0.4578]
[1764141789601,0.215,2951.1,2950.9,0.4578]
[1764141791427,3.60365779,2951.1,2950.9,0.4578]
[1764141792709,3.60365779,2951.1,2950.9,0.001]
[1764141793526,3.7261818,2951.0,2950.9,0.001]
[1764141794354,0.3375,2951.0,2950.9,0.001]
[1764141794527,0.215,2951.1,2950.9,0.001]
[1764141795044,3.60357792,2951.1,2950.9,0.001]
[1764141796652,0.3375,2951.0,2950.9,0.001]
[1764141797819,0.215,2951.1,2950.9,0.001]
[1764141798231,3.60360939,2951.1,2950.9,0.001]
[1764141799337,3.38860939,2951.1,2950.9,0.001]
[1764141799544,0.215,2951.0,2950.9,0.001]
[1764141800248,0.215,2951.0,2950.9,0.4919]
[1764141800445,0.192,2954.3,2950.9,0.9629]
[1764141800446,0.1905,2951.9,2950.9,0.9629]
[1764141800636,3.6027931,2951.8,2951.1,0.4909]
[1764141800830,0.72559411,2951.7,2951.1,0.4909]
[1764141801144,0.72559411,2951.7,2951.1,0.6714]
[1764141801332,1.18189411,2951.7,2951.1,0.6714]
[1764141802145,4.56981963,2951.7,2951.1,1.1424]
[1764141802444,0.3327,2951.2,2950.9,0.001]
[1764141802845,0.3327,2951.0,2950.9,0.001]
[1764141803444,0.4563,2951.2,2950.9,0.001]
[1764141804537,3.84475833,2951.2,2950.9,0.001]
[1764141804748,3.6033511,2951.3,2950.9,0.001]
[1764141804943,4.0596511,2951.3,2950.9,0.001]
[1764141805447,0.459,2951.0,2950.9,0.001]
[1764141805832,0.789,2951.0,2950.9,0.001]
[1764141806549,0.459,2951.0,2950.9,0.001]
[1764141806850,4.27741889,2951.0,2950.9,0.001]
[1764141807050,0.88873709,2951.0,2950.9,0.001]
[1764141807351,0.459,2951.0,2950.9,0.001]
[1764141808535,3.38856933,2951.1,2950.9,0.4919]
[1764141809659,0.88753709,2951.0,2950.9,0.001]
[1764141810669,4.27621889,2951.0,2950.9,0.001]
[1764141811758,4.59384919,2951.0,2950.9,0.001]
[1764141818054,0.6503303,2951.0,2950.9,0.001]
[1764141818385,0.3176303,2951.0,2950.9,0.9629]
[1764141818754,0.5326303,2951.0,2950.9,0.9629]
[1764141819280,0.90365862,2951.7,2950.9,0.9629]
[1764141819485,0.72559411,2951.5,2951.1,0.4909]
[1764141819674,1.04988051,2951.4,2951.1,0.4909]
[1764141819879,0.31776582,2951.3,2951.2,0.6515]
[1764141820195,0.31776582,2951.3,2951.2,1.1424]
[1764141820657,0.215,2951.3,2951.2,1.1424]
[1764141823988,0.217,2951.3,2951.2,1.1424]